fUST/lending_fUST_20250517
["ID","MTS","AMOUNT","RATE_DAILY","PERIOD"]
[361284122,1747421443489,-400.0,0.00013698,2]
[361284124,1747421443498,-450.0,0.00013698,2]
[361284126,1747421443508,-512.77,0.00013698,2]
[361284128,1747421443517,-400.0,0.00013698,2]
[361284130,1747421443526,-160.0,0.00013698,2]
[361284132,1747421443536,-450.0,0.00013698,2]
[361284134,1747421443547,-417.56,0.00013698,2]
[361284136,1747421443557,-445.07,0.00013698,2]
[361284138,1747421443568,-539.52,0.00013698,2]
[361284140,1747421443577,-450.0,0.00013698,2]
[361284142,1747421443586,-500.0,0.00013698,2]
[361284144,1747421443595,-400.0,0.00013698,2]
[361284146,1747421443606,-450.0,0.00013698,2]
[361284148,1747421443615,-403.08616608,0.00013698,2]
[361284150,1747421443624,-400.0,0.00013698,2]
[361284152,1747421443633,-400.0,0.00013698,2]
[361284154,1747421443643,-417.45,0.00013698,2]
[361284156,1747421443653,-400.0,0.00013698,2]
[361284158,1747421443662,-500.0,0.00013698,2]
[361284160,1747421443671,-450.0,0.00013698,2]
[361284162,1747421443680,-544.91,0.00013698,2]
[361284164,1747421443690,-450.0,0.00013698,2]
[361284166,1747421443699,-450.0,0.00013698,2]
[361284168,1747421443708,-400.0,0.00013698,2]
[361284170,1747421443718,-448.16562938,0.00013698,2]
[361284172,1747421443727,-450.0,0.00013698,2]
[361284174,1747421443736,-503.63,0.00013698,2]
[361284176,1747421443746,-400.0,0.00013698,2]
[361284178,1747421443754,-400.0,0.00013698,2]
[361284180,1747421443763,-500.0,0.00013698,2]
[361284182,1747421443773,-400.0,0.00013698,2]
[361284184,1747421443782,-503.45,0.00013698,2]
[361284186,1747421443792,-946.32,0.00013698,2]
[361284188,1747421443801,-400.0,0.00013698,2]
[361284190,1747421443810,-516.0483265,0.00013698,2]
[361284192,1747421443819,-400.0,0.00013698,2]
[361284194,1747421443829,-400.0,0.00013698,2]
[361284196,1747421443838,-400.0,0.00013698,2]
[361284198,1747421443848,-450.0,0.00013698,2]
[361284200,1747421443858,-400.0,0.00013698,2]
[361284202,1747421443868,-239.15417733,0.00013698,2]
[361284204,1747421443877,-400.0,0.00013698,2]
[361284206,1747421443887,-400.0,0.00013698,2]
[361284208,1747421443897,-450.0,0.00013698,2]
[361284210,1747421443906,-400.0,0.00013698,2]
[361284212,1747421443915,-400.0,0.00013698,2]
[361284214,1747421443924,-442.03350281,0.00013698,2]
[361284216,1747421443933,-413.92,0.00013698,2]
[361284218,1747421443942,-400.0,0.00013698,2]
[361284220,1747421443951,-450.0,0.00013698,2]
[361284222,1747421443961,-517.79,0.00013698,2]
[361284224,1747421443970,-400.0,0.00013698,2]
[361284226,1747421443979,-400.0,0.00013698,2]
[361284228,1747421443988,-400.0,0.00013698,2]
[361284230,1747421443997,-450.0,0.00013698,2]
[361284232,1747421444007,-450.0,0.00013698,2]
[361284234,1747421444016,-400.0,0.00013698,2]
[361284236,1747421444025,-400.0,0.00013698,2]
[361284238,1747421444035,-400.0,0.00013698,2]
[361284240,1747421444044,-450.0,0.00013698,2]
[361284242,1747421444053,-435.52,0.00013698,2]
[361284244,1747421444062,-400.0,0.00013698,2]
[361284246,1747421444071,-400.0,0.00013698,2]
[361284248,1747421444080,-400.0,0.00013698,2]
[361284250,1747421444090,-400.0,0.00013698,2]
[361284252,1747421444099,-400.0,0.00013698,2]
[361284254,1747421444108,-400.0,0.00013698,2]
[361284256,1747421444117,-556.02,0.00013698,2]
[361284258,1747421444126,-400.0,0.00013698,2]
[361284260,1747421444135,-450.0,0.00013698,2]
[361284262,1747421444144,-400.0,0.00013698,2]
[361284264,1747421444153,-400.0,0.00013698,2]
[361284266,1747421444162,-504.51640924,0.00013698,2]
[361284268,1747421444171,-450.0,0.00013698,2]
[361284270,1747421444181,-400.0,0.00013698,2]
[361284272,1747421444190,-400.0,0.00013698,2]
[361284274,1747421444199,-500.0,0.00013698,2]
[361284276,1747421444208,-468.37,0.00013698,2]
[361284278,1747421444218,-450.0,0.00013698,2]
[361284280,1747421444228,-423.64732987,0.00013698,2]
[361284282,1747421444237,-400.0,0.00013698,2]
[361284284,1747421444246,-400.0,0.00013698,2]
[361284286,1747421444255,-400.0,0.00013698,2]
[361284288,1747421444264,-309.23990905,0.00013698,2]
[361284410,1747421446375,-90.76009095,0.00013698,2]
[361284412,1747421446385,-450.0,0.00013698,2]
[361284414,1747421446395,-400.0,0.00013698,2]
[361284416,1747421446404,-223.58426787,0.00013698,2]
[361284437,1747422317210,444.22,0.0002739,120]
[361284486,1747422632474,-3687.60221849,0.00012443,14]
[361284487,1747422632493,-1312.39778151,0.00012443,14]
[361284488,1747422632503,-1200.0,0.00012632,2]
[361284489,1747422632513,-3393.5498378,0.00012633,2]
[361284490,1747422632523,-300.0,0.00012692,2]
[361284491,1747422632532,-300.0,0.00012692,2]
[361284493,1747422632543,-24900.0,0.00012693,2]
[361284494,1747422632552,-463.5854835,0.00012696,2]
[361284495,1747422632561,-3377.20345469,0.00013,2]
[361284497,1747422632571,-3377.20345458,0.00013003,2]
[361284498,1747422632580,-3377.20345458,0.00013107,2]
[361284499,1747422632590,-3377.20345458,0.0001321,2]
[361284500,1747422632601,-10100.53878872,0.00013314,2]
[361284501,1747422632612,-39899.46121128,0.00013314,2]
[361284502,1747422632622,-3377.20345458,0.00013314,2]
[361284503,1747422632631,-3377.20345458,0.00013417,2]
[361284504,1747422632641,-3377.20345458,0.00013521,2]
[361284505,1747422632650,-3377.20345458,0.00013624,2]
[361284506,1747422632667,-652.84442803,0.00013661,2]
[361284507,1747422632681,-162.34663815,0.00013693,2]
[361284508,1747422632691,-554.31381588,0.00013693,2]
[361284509,1747422632701,-500.0,0.00013693,2]
[361284510,1747422632711,-500.0,0.00013693,2]
[361284511,1747422632720,-531.31885424,0.00013693,2]
[361284512,1747422632730,-455.28852389,0.00013693,2]
[361284513,1747422632740,-500.0,0.00013693,2]
[361284514,1747422632750,-311.72251862,0.00013693,2]
[361284515,1747422632759,-500.0,0.00013698,2]
[361284516,1747422632769,-504.93973424,0.00013698,2]
[361284517,1747422632780,-450.0,0.00013698,2]
[361284518,1747422632790,-450.0,0.00013698,2]
[361284519,1747422632800,-511.54063522,0.00013698,2]
[361284520,1747422632810,-450.0,0.00013698,2]
[361284521,1747422632820,-176.41573213,0.00013698,2]
[361284522,1747422632830,-400.0,0.00013698,2]
[361284523,1747422632842,-400.0,0.00013698,2]
[361284524,1747422632857,-500.0,0.00013698,2]
[361284525,1747422632868,-400.0,0.00013698,2]
[361284526,1747422632879,-400.0,0.00013698,2]
[361284527,1747422632889,-539.51,0.00013698,2]
[361284528,1747422632899,-400.0,0.00013698,2]
[361284529,1747422632909,-400.0,0.00013698,2]
[361284530,1747422632919,-400.0,0.00013698,2]
[361284531,1747422632930,-400.0,0.00013698,2]
[361284532,1747422632940,-400.0,0.00013698,2]
[361284533,1747422632950,-598.0,0.00013698,2]
[361284534,1747422632960,-450.0,0.00013698,2]
[361284535,1747422632970,-400.0,0.00013698,2]
[361284537,1747422632980,-450.0,0.00013698,2]
[361284539,1747422632991,-400.0,0.00013698,2]
[361284542,1747422633002,-516.29780521,0.00013698,2]
[361284543,1747422633013,-400.0,0.00013698,2]
[361284546,1747422633024,-400.85692695,0.00013698,2]
[361284548,1747422633036,-400.0,0.00013698,2]
[361284549,1747422633047,-450.0,0.00013698,2]
[361284551,1747422633058,-400.0,0.00013698,2]
[361284554,1747422633069,-450.0,0.00013698,2]
[361284556,1747422633081,-450.0,0.00013698,2]
[361284558,1747422633091,-400.0,0.00013698,2]
[361284559,1747422633103,-450.0,0.00013698,2]
[361284561,1747422633114,-400.0,0.00013698,2]
[361284563,1747422633124,-400.0,0.00013698,2]
[361284565,1747422633134,-400.0,0.00013698,2]
[361284566,1747422633144,-400.0,0.00013698,2]
[361284568,1747422633154,-500.0,0.00013698,2]
[361284570,1747422633164,-442.74633247,0.00013698,2]
[361284589,1747422633386,-401.0,0.00013698,2]
[361284591,1747422633397,-400.0,0.00013698,2]
[361284594,1747422633408,-500.0,0.00013698,2]
[361284596,1747422633418,-400.0,0.00013698,2]
[361284598,1747422633427,-332.81,0.00013698,2]
[361284600,1747422633438,-566.08,0.00013698,2]
[361284601,1747422633447,-400.0,0.00013698,2]
[361284603,1747422633457,-400.0,0.00013698,2]
[361284604,1747422633467,-450.0,0.00013698,2]
[361284605,1747422633478,-451.7,0.00013698,2]
[361284607,1747422633492,-533.0,0.00013698,2]
[361284609,1747422633502,-400.0,0.00013698,2]
[361284611,1747422633512,-450.0,0.00013698,2]
[361284613,1747422633522,-450.0,0.00013698,2]
[361284615,1747422633532,-1042.08,0.00013698,2]
[361284617,1747422633541,-488.34933943,0.00013698,2]
[361284619,1747422633550,-450.0,0.00013698,2]
[361284621,1747422633560,-400.0,0.00013698,2]
[361284623,1747422633569,-450.0,0.00013698,2]
[361284624,1747422633579,-474.65,0.00013698,2]
[361284626,1747422633588,-450.0,0.00013698,2]
[361284628,1747422633600,-450.0,0.00013698,2]
[361284630,1747422633610,-450.0,0.00013698,2]
[361284632,1747422633620,-450.0,0.00013698,2]
[361284634,1747422633629,-676.232021,0.00013699,2]
[361284636,1747422633639,-262.102449,0.00013699,2]
[361284638,1747422633648,-3377.20345458,0.00013728,2]
[361284640,1747422633657,-151.0,0.00013822,2]
[361284642,1747422633667,-215.0738,0.00013822,2]
[361284644,1747422633677,-3377.20345458,0.00013831,2]
[361284646,1747422633688,-562.54471708,0.00013835,2]
[361284649,1747422633703,-450.0,0.00013835,2]
[361284651,1747422633714,-450.0,0.00013835,2]
[361284653,1747422633724,-398.46,0.00013835,2]
[361284655,1747422633734,-450.0,0.00013835,2]
[361284657,1747422633743,-450.0,0.00013835,2]
[361284659,1747422633752,-450.0,0.00013835,2]
[361284661,1747422633762,-450.0,0.00013835,2]
[361284663,1747422633772,-1042.08,0.00013835,2]
[361284665,1747422633782,-450.0,0.00013835,2]
[361284667,1747422633792,-450.0,0.00013835,2]
[361284669,1747422633802,-450.0,0.00013835,2]
[361284671,1747422633813,-450.0,0.00013835,2]
[361284673,1747422633823,-310.33,0.00013835,2]
[361284675,1747422633833,-450.0,0.00013835,2]
[361284677,1747422633844,-1680.0,0.00013896,2]
[361284679,1747422633854,-160.0,0.0001391,2]
[361284681,1747422633864,-160.0,0.0001391,2]
[361284683,1747422633874,-160.0,0.0001391,2]
[361284685,1747422633883,-422.39640784,0.0001391,2]
[361284687,1747422633893,-998.24360331,0.0001391,2]
[361284689,1747422633903,-212.26722696,0.0001391,2]
[361284691,1747422633913,-255.0,0.00013923,2]
[361284693,1747422633923,-300.0,0.00013923,2]
[361284695,1747422633932,-3377.20345458,0.00013934,2]
[361284697,1747422633942,-162.23,0.00013972,2]
[361284699,1747422633951,-450.0,0.00013972,2]
[361284701,1747422633961,-450.0,0.00013972,2]
[361284703,1747422633971,-450.0,0.00013972,2]
[361284705,1747422633980,-450.0,0.00013972,2]
[361284707,1747422633990,-1042.08,0.00013972,2]
[361284709,1747422634000,-450.0,0.00013972,2]
[361284711,1747422634010,-470.18,0.00013972,2]
[361284713,1747422634020,-450.0,0.00013972,2]
[361284715,1747422634030,-450.0,0.00013972,2]
[361284717,1747422634041,-450.0,0.00013972,2]
[361284719,1747422634051,-3377.20345458,0.00014038,2]
[361284721,1747422634060,-450.0,0.00014109,2]
[361284723,1747422634071,-450.0,0.00014109,2]
[361284725,1747422634080,-476.7,0.00014109,2]
[361284727,1747422634091,-450.0,0.00014109,2]
[361284729,1747422634101,-1042.08,0.00014109,2]
[361284731,1747422634110,-450.0,0.00014109,2]
[361284733,1747422634120,-450.0,0.00014109,2]
[361284735,1747422634130,-450.0,0.00014109,2]
[361284738,1747422634140,-450.0,0.00014109,2]
[361284740,1747422634150,-3377.20345458,0.00014141,2]
[361284742,1747422634160,-296.0832656,0.00014192,2]
[361284744,1747422634171,-238.0850385,0.00014192,2]
[361284746,1747422634184,-175.8374533,0.00014192,2]
[361284748,1747422634194,-175.8374533,0.00014192,2]
[361284750,1747422634203,-175.8374533,0.00014192,2]
[361284752,1747422634214,-2800.0,0.00014199,3]
[361284754,1747422634224,-3377.20345458,0.00014245,2]
[361284756,1747422634234,-450.0,0.00014246,2]
[361284758,1747422634244,-543.96,0.00014246,2]
[361284760,1747422634257,-450.0,0.00014246,2]
[361284762,1747422634267,-1042.08,0.00014246,2]
[361284764,1747422634276,-450.0,0.00014246,2]
[361284766,1747422634286,-450.0,0.00014246,2]
[361284767,1747422634296,-450.0,0.00014246,2]
[361284768,1747422634306,-450.0,0.00014246,2]
[361284769,1747422634315,-502.65948373,0.00014329,2]
[361284770,1747422634324,-3377.20345458,0.00014348,2]
[361284771,1747422634334,-450.0,0.00014383,2]
[361284772,1747422634344,-1042.08,0.00014383,2]
[361284773,1747422634354,-250.0,0.00014383,2]
[361284774,1747422634364,-504.72,0.00014383,2]
[361284775,1747422634373,-502.65948373,0.00014384,2]
[361284776,1747422634383,-154.670011,0.000144,5]
[361284777,1747422634393,-151.353755,0.000144,5]
[361284778,1747422634402,-3377.20345458,0.00014452,2]
[361284779,1747422634411,-502.65948373,0.00014466,2]
[361284780,1747422634421,-450.0,0.0001452,2]
[361284781,1747422634431,-1042.08,0.0001452,2]
[361284782,1747422634440,-502.65948373,0.00014521,2]
[361284783,1747422634450,-3377.20345458,0.00014555,2]
[361284784,1747422634459,-502.65948373,0.00014603,2]
[361284785,1747422634469,-450.0,0.00014657,2]
[361284786,1747422634479,-1042.08,0.00014657,2]
[361284787,1747422634488,-502.65948373,0.00014658,2]
[361284788,1747422634498,-3377.20345458,0.00014659,2]
[361284789,1747422634507,-3269.0,0.00014659,3]
[361284790,1747422634516,-800.0,0.00014701,2]
[361284791,1747422634526,-800.0,0.00014722,2]
[361284792,1747422634535,-800.0,0.00014724,2]
[361284793,1747422634545,-800.0,0.00014735,2]
[361284794,1747422634554,-253.341,0.00014736,2]
[361284795,1747422634564,-502.65948373,0.0001474,2]
[361284796,1747422634573,-400.63670677,0.00014748,3]
[361284798,1747422634583,-800.0,0.00014748,2]
[361284800,1747422634592,-800.0,0.00014761,2]
[361284802,1747422634601,-3377.20345458,0.00014762,2]
[361284804,1747422634611,-800.0,0.0001477,2]
[361284806,1747422634620,-800.0,0.00014775,2]
[361284808,1747422634629,-800.0,0.00014776,2]
[361284810,1747422634639,-450.0,0.00014794,2]
[361284812,1747422634648,-1042.08,0.00014794,2]
[361284814,1747422634658,-502.65948373,0.00014795,2]
[361284816,1747422634668,-788.00659389,0.00014831,2]
[361284818,1747422634678,-800.0,0.00014838,2]
[361284820,1747422634687,-800.0,0.00014864,2]
[361284822,1747422634697,-800.0,0.00014865,2]
[361284824,1747422634706,-3377.20345458,0.00014866,2]
[361284826,1747422634715,-800.0,0.00014873,2]
[361284828,1747422634724,-800.0,0.00014876,2]
[361284830,1747422634734,-502.65948373,0.00014877,2]
[361284833,1747422634743,-800.0,0.00014882,2]
[361284834,1747422634752,-552.412,0.00014889,2]
[361284836,1747422634761,-706.0,0.00014889,2]
[361284839,1747422634771,-404.0,0.00014889,2]
[361284841,1747422634782,-800.0,0.00014896,2]
[361284843,1747422634792,-800.0,0.00014896,2]
[361284845,1747422634801,-4110.93259884,0.000149,2]
[361284847,1747422634811,-1802.1574624,0.00014924,2]
[361284849,1747422634820,-450.0,0.00014931,2]
[361284851,1747422634829,-1042.08,0.00014931,2]
[361284853,1747422634838,-335.95753751,0.00014936,2]
[361284855,1747422634848,-3377.20345458,0.00014969,2]
[361284857,1747422634858,-800.0,0.00014969,2]
[361284859,1747422634867,-500.0,0.00014973,2]
[361284861,1747422634876,-500.0,0.00014973,2]
[361284863,1747422634886,-500.0,0.00014973,2]
[361284865,1747422634895,-500.0,0.00014973,2]
[361284867,1747422634905,-500.0,0.00014973,2]
[361284869,1747422634914,-503.44736264,0.00014973,2]
[361284871,1747422634923,-500.0,0.00014973,2]
[361284873,1747422634932,-67557.13504078,0.00015,5]
[361284879,1747422634976,-2662.56199191,0.00015,5]
[361285231,1747422638330,-5000.0,0.0001356,14]
[361285233,1747422638340,-500.0,0.00013697,2]
[361285235,1747422638351,-500.0,0.00013697,2]
[361285237,1747422638360,-500.0,0.00013697,2]
[361285239,1747422638370,-306.9894509,0.00013697,2]
[361285240,1747422638380,-188.78621862,0.00013697,2]
[361285241,1747422638390,-368.45272008,0.00013697,2]
[361285242,1747422638402,-131.54727992,0.00013697,2]
[361285243,1747422638412,-4771.85272007,0.00015,5]
[361285246,1747422638423,-4503.27638155,0.00015,5]
[361285356,1747422643467,-3100.0,0.00015,5]
[361285674,1747422646449,-450.0,0.00013698,2]
[361285677,1747422646460,-323.8,0.00013835,2]
[361285679,1747422646469,-543.72103089,0.00015,5]
[361285714,1747423751423,500.0,0.00027397,120]
[361285715,1747423769369,501.0,0.00027397,120]
[361285716,1747423787497,502.0,0.00027397,120]
[361285717,1747423805486,503.0,0.00027397,120]
[361285721,1747423832467,-5000.0,0.00012741,14]
[361285722,1747423832477,-1370.0,0.00013,2]
[361285723,1747423832487,-1013.16103649,0.00013,2]
[361285724,1747423832496,-1013.16103637,0.00013003,2]
[361285725,1747423832506,-1013.16103637,0.00013107,2]
[361285726,1747423832516,-1013.16103637,0.0001321,2]
[361285727,1747423832528,-1013.16103637,0.00013314,2]
[361285728,1747423832538,-1013.16103637,0.00013417,2]
[361285729,1747423832547,-300.0,0.00013469,2]
[361285730,1747423832556,-24900.0,0.0001347,2]
[361285731,1747423832566,-1013.16103637,0.00013521,2]
[361285732,1747423832575,-164.77107327,0.00013598,2]
[361285733,1747423832584,-39.68703456,0.00013624,2]
[361285734,1747423832605,-973.47400181,0.00013624,2]
[361285735,1747423832614,-607.88,0.00013698,2]
[361285736,1747423832624,-485.5,0.00013698,2]
[361285737,1747423832634,-450.0,0.00013698,2]
[361285738,1747423832643,-682.295716,0.00013699,2]
[361285739,1747423832653,-1013.16103637,0.00013728,2]
[361285740,1747423832663,-151.0,0.00013822,2]
[361285741,1747423832672,-1013.16103637,0.00013831,2]
[361285742,1747423832682,-607.88,0.00013835,2]
[361285744,1747423832691,-450.0,0.00013835,2]
[361285745,1747423832701,-2483.16020822,0.00013835,2]
[361285747,1747423832711,-998.24360331,0.00013914,2]
[361285748,1747423832720,-212.26722696,0.00013914,2]
[361285749,1747423832729,-160.0,0.00013914,2]
[361285750,1747423832741,-422.39640784,0.00013914,2]
[361285752,1747423832750,-1013.16103637,0.00013934,2]
[361285754,1747423832760,-607.88,0.00013972,2]
[361285756,1747423832770,-450.0,0.00013972,2]
[361285758,1747423832779,-1013.16103637,0.00014038,2]
[361285760,1747423832789,-607.88,0.00014109,2]
[361285762,1747423832799,-450.0,0.00014109,2]
[361285764,1747423832809,-1013.16103637,0.00014141,2]
[361285766,1747423832819,-213.6678568,0.00014192,2]
[361285768,1747423832829,-200.0,0.00014244,4]
[361285770,1747423832838,-1013.16103637,0.00014245,2]
[361285771,1747423832849,-607.88,0.00014246,2]
[361285773,1747423832858,-450.0,0.00014246,2]
[361285775,1747423832868,-151.353755,0.00014303,3]
[361285776,1747423832877,-1013.16103637,0.00014348,2]
[361285777,1747423832887,-607.88,0.00014383,2]
[361285778,1747423832897,-450.0,0.00014383,2]
[361285779,1747423832906,-151.353755,0.000144,5]
[361285780,1747423832916,-1013.16103637,0.00014452,2]
[361285782,1747423832925,-607.88,0.0001452,2]
[361285784,1747423832935,-450.0,0.0001452,2]
[361285786,1747423832944,-1013.16103637,0.00014555,2]
[361285788,1747423832954,-607.88,0.00014657,2]
[361285789,1747423832963,-450.0,0.00014657,2]
[361285790,1747423832973,-1013.16103637,0.00014659,2]
[361285791,1747423832983,-652.84442803,0.00014708,2]
[361285792,1747423832995,-1013.16103637,0.00014762,2]
[361285793,1747423833004,-420.0,0.00014765,2]
[361285794,1747423833014,-607.88,0.00014794,2]
[361285795,1747423833024,-450.0,0.00014794,2]
[361285796,1747423833033,-1013.16103637,0.00014866,2]
[361285797,1747423833043,-404.0,0.00014898,2]
[361285798,1747423833053,-3699.83933892,0.000149,2]
[361285799,1747423833063,-1441.7259699,0.00014924,2]
[361285800,1747423833073,-607.88,0.00014931,2]
[361285801,1747423833084,-350.0,0.00014931,2]
[361285802,1747423833097,-1013.16103637,0.00014969,2]
[361285803,1747423833107,-202.672,0.00014969,2]
[361285804,1747423833118,-500.0,0.00014973,2]
[361285805,1747423833128,-506.58830349,0.00014973,2]
[361285806,1747423833139,-314.75298892,0.00014973,2]
[361285808,1747423833149,-500.0,0.00014973,2]
[361285809,1747423833159,-500.0,0.00014973,2]
[361285810,1747423833170,-500.0,0.00014973,2]
[361285812,1747423833180,-500.0,0.00014973,2]
[361285814,1747423833191,-500.0,0.00014973,2]
[361285817,1747423833201,-500.0,0.00014973,2]
[361285820,1747423833211,-500.0,0.00014973,2]
[361285824,1747423833222,-500.0,0.00014973,2]
[361285828,1747423833232,-500.0,0.00014973,2]
[361285831,1747423833242,-500.0,0.00014973,2]
[361285834,1747423833253,-500.0,0.00014973,2]
[361285837,1747423833262,-500.0,0.00014973,2]
[361285838,1747423833272,-500.0,0.00014973,2]
[361285839,1747423833282,-500.0,0.00014973,2]
[361285841,1747423833291,-500.0,0.00014973,2]
[361285843,1747423833302,-426.31838213,0.00014973,2]
[361285845,1747423833312,-500.0,0.00014973,2]
[361285847,1747423833323,-500.0,0.00014973,2]
[361285849,1747423833332,-500.0,0.00014973,2]
[361285851,1747423833345,-500.0,0.00014973,2]
[361285853,1747423833354,-500.0,0.00014973,2]
[361285855,1747423833364,-500.0,0.00014973,2]
[361285857,1747423833374,-500.0,0.00014973,2]
[361285859,1747423833384,-1811.31620426,0.00014997,2]
[361285861,1747423833398,-232.68379574,0.00014997,2]
[361285863,1747423833408,-2044.0,0.00014997,2]
[361285865,1747423833418,-2044.0,0.00014997,2]
[361285867,1747423833427,-2044.0,0.00014997,2]
[361285869,1747423833437,-2044.0,0.00014997,2]
[361285871,1747423833446,-2044.0,0.00014997,2]
[361285873,1747423833456,-2044.0,0.00014997,2]
[361285875,1747423833465,-2044.0,0.00014997,2]
[361285877,1747423833476,-2044.0,0.00014997,2]
[361285879,1747423833485,-2044.0,0.00014997,2]
[361285881,1747423833495,-500.0,0.00014999,2]
[361285883,1747423833505,-500.0,0.00014999,2]
[361285885,1747423833514,-169.34714602,0.00014999,2]
[361285887,1747423833524,-417.63046483,0.00014999,2]
[361285889,1747423833534,-500.0,0.00014999,2]
[361285891,1747423833544,-26974.93189765,0.00015,3]
[361285894,1747423833554,-214575.94876681,0.00015,2]
[361285895,1747423833564,-124685.23935455,0.00015,5]
[361285961,1747423834805,521.0,0.00027397,120]
[361285998,1747423838470,-5000.0,0.00012614,14]
[361286000,1747423838480,-21452.46293733,0.00015,5]
[361286005,1747423838527,-272.5430213,0.00015,5]
[361286233,1747423840701,-1010.6,0.00015,5]
[361286523,1747423843566,-4206.8744175,0.00015,5]
[361286804,1747423846688,-13141.00000002,0.00015,5]
[361287094,1747424215335,-308.03846108,0.00011,2]
[361287095,1747424217460,-164.83253891,0.00011,2]
[361287096,1747424220797,-255.58225956,0.00011,2]
[361287097,1747424222465,-249.60773957,0.0001089,2]
[361287098,1747424223903,-229.0914388,0.0001089,2]
[361287099,1747424230125,-321.34927072,0.0001089,2]
[361287100,1747424231678,-190.84214183,0.0001089,2]
[361287101,1747424233834,-155.48722296,0.0001089,2]
[361287102,1747424237421,-565.99779108,0.0001089,2]
[361287103,1747424237575,-3287.62439504,0.0001089,2]
[361287104,1747424237598,-300.0,0.00010999,2]
[361287105,1747424237621,-205048.35397064,0.00011,2]
[361287108,1747424444897,-4200.0,0.00011846,2]
[361287109,1747424514822,-500.0,0.00011846,2]
[361287111,1747424648592,-5000.0,0.00011728,2]
[361287113,1747424848035,2820.77958998,0.00011,14]
[361287114,1747424899944,17302.97798706,0.000273,120]
[361287129,1747425038586,-867.379751,0.00012192,14]
[361287130,1747425038691,-1383.20492776,0.00012192,14]
[361287188,1747425040988,-0.00238017,0.00012192,14]
[361287793,1747425046869,-2749.41294107,0.00012192,14]
[361287795,1747425046879,-300.0,0.00012314,2]
[361287797,1747425046889,-300.0,0.00012315,2]
[361287799,1747425046898,-300.0,0.00012315,2]
[361287801,1747425046908,-300.0,0.00012315,2]
[361287803,1747425046918,-1200.0,0.00012315,2]
[361287805,1747425046928,-3667.32386783,0.00012317,2]
[361287809,1747425046960,-6332.67613217,0.00012317,2]
[361287811,1747425046970,-500.0,0.00012899,2]
[361287813,1747425046979,-500.0,0.00012899,2]
[361287815,1747425046992,-500.0,0.00012899,2]
[361287817,1747425047002,-500.0,0.00012899,2]
[361287819,1747425047011,-161.38355715,0.00012899,2]
[361287821,1747425047020,-3227.4775964,0.00012901,2]
[361287950,1747426003946,-4867.0,0.00012007,2]
[361288385,1747426243092,-633.18348431,0.00011887,2]
[361291260,1747426386077,-3949.0,0.00011768,2]
[361291261,1747426496864,309.2610431,0.00027397,120]
[361291265,1747427116831,5000.0,0.00011,14]
[361291266,1747427138629,10000.0,0.00027397,120]
[361291269,1747427317597,5000.0,0.00011,14]
[361291840,1747427443067,-5000.0,0.00011213,2]
[361291842,1747427443078,-1200.0,0.00011326,2]
[361291844,1747427443088,-3667.3238679,0.00011327,2]
[361291846,1747427443097,-300.0,0.00011414,2]
[361291848,1747427443108,-300.0,0.00011415,2]
[361291850,1747427443117,-300.0,0.00011415,2]
[361291852,1747427443126,-300.0,0.00011415,2]
[361291854,1747427443136,-24900.0,0.00011419,2]
[361291856,1747427443145,-200.38693743,0.0001155,2]
[361291858,1747427443154,-214.9809894,0.00011562,2]